[Event "*** SCC Grand Prix: Titled Tuesday Blitz"]
[Site "Chess.com"]
[Date "2020.06.09"]
[Round "6"]
[White "Olga_Girya"]
[Black "Panterov"]
[Result "1-0"]
[WhiteElo "2401"]
[BlackElo "2156"]
[TimeControl "180+1"]
[EndTime "10:05:01 PDT"]
[Termination "Olga_Girya won by resignation"]

1. d4 {[%clk 0:03:00.9]} 1... Nf6 {[%clk 0:02:58.4]} 2. c4 {[%clk 0:02:59.2]}
2... e6 {[%clk 0:02:58.6]} 3. Nf3 {[%clk 0:02:59]} 3... b6 {[%clk 0:02:56.9]} 4.
a3 {[%clk 0:02:56.2]} 4... Bb7 {[%clk 0:02:57.2]} 5. Nc3 {[%clk 0:02:56.1]} 5...
g6 {[%clk 0:02:55.6]} 6. Bf4 {[%clk 0:02:43.8]} 6... Bg7 {[%clk 0:02:55.6]} 7.
e3 {[%clk 0:02:44]} 7... O-O {[%clk 0:02:55.1]} 8. Bd3 {[%clk 0:02:43.5]} 8...
d5 {[%clk 0:02:55.3]} 9. cxd5 {[%clk 0:02:40.4]} 9... Nxd5 {[%clk 0:02:54.8]}
10. Nxd5 {[%clk 0:02:40.3]} 10... Bxd5 {[%clk 0:02:51.1]} 11. O-O {[%clk
0:02:39.2]} 11... Nd7 {[%clk 0:02:51.3]} 12. Bg5 {[%clk 0:02:08]} 12... Bf6
{[%clk 0:02:47.4]} 13. Bxf6 {[%clk 0:02:03.1]} 13... Qxf6 {[%clk 0:02:48.3]} 14.
b4 {[%clk 0:01:49.5]} 14... Bxf3 {[%clk 0:02:44.8]} 15. Qxf3 {[%clk 0:01:48.9]}
15... Qxf3 {[%clk 0:02:45]} 16. gxf3 {[%clk 0:01:49.8]} 16... c5 {[%clk
0:02:43.8]} 17. Bb5 {[%clk 0:01:49.5]} 17... Rfd8 {[%clk 0:02:42.5]} 18. dxc5
{[%clk 0:01:39.4]} 18... bxc5 {[%clk 0:02:42.3]} 19. Rfd1 {[%clk 0:01:29.3]}
19... Ne5 {[%clk 0:02:42.4]} 20. bxc5 {[%clk 0:01:26.3]} 20... Nxf3+ {[%clk
0:02:35.5]} 21. Kg2 {[%clk 0:01:26.5]} 21... Ne5 {[%clk 0:02:23.8]} 22. f4
{[%clk 0:01:09]} 22... Ng4 {[%clk 0:02:23.9]} 23. Kf3 {[%clk 0:01:08.2]} 23...
h5 {[%clk 0:02:15.9]} 24. h3 {[%clk 0:01:07.4]} 24... Nf6 {[%clk 0:02:15.9]} 25.
Ba6 {[%clk 0:00:51.1]} 25... Nd5 {[%clk 0:02:00.4]} 26. Bb7 {[%clk 0:00:38.7]}
26... Rab8 {[%clk 0:01:59.9]} 27. c6 {[%clk 0:00:38.3]} 27... Nc7 {[%clk
0:01:57]} 28. Rd7 {[%clk 0:00:32.6]} 28... Rxd7 {[%clk 0:01:48.2]} 29. cxd7
{[%clk 0:00:32.6]} 29... Kf8 {[%clk 0:01:48.8]} 30. Rc1 {[%clk 0:00:29.6]} 1-0

[Event "*** SCC Grand Prix: Titled Tuesday Blitz"]
[Site "Chess.com"]
[Date "2020.06.09"]
[Round "6"]
[White "PlayChessSimple"]
[Black "Fins0905"]
[Result "1-0"]
[WhiteElo "2512"]
[BlackElo "2642"]
[TimeControl "180+1"]
[EndTime "10:05:05 PDT"]
[Termination "PlayChessSimple won by resignation"]

1. e4 {[%clk 0:03:00.9]} 1... d5 {[%clk 0:02:58.8]} 2. Nc3 {[%clk 0:03:00]} 2...
dxe4 {[%clk 0:02:57.7]} 3. Nxe4 {[%clk 0:02:59.9]} 3... Qd5 {[%clk 0:02:56.2]}
4. d3 {[%clk 0:03:00]} 4... Nc6 {[%clk 0:02:55.3]} 5. Ne2 {[%clk 0:02:58.8]}
5... e5 {[%clk 0:02:51.5]} 6. N2c3 {[%clk 0:02:58.4]} 6... Qd8 {[%clk
0:02:51.1]} 7. Be2 {[%clk 0:02:48]} 7... Be7 {[%clk 0:02:48.7]} 8. O-O {[%clk
0:02:47.4]} 8... Nf6 {[%clk 0:02:48.1]} 9. Nxf6+ {[%clk 0:02:47]} 9... Bxf6
{[%clk 0:02:49]} 10. Ne4 {[%clk 0:02:47.1]} 10... Be7 {[%clk 0:02:48.5]} 11. f4
{[%clk 0:02:45.6]} 11... exf4 {[%clk 0:02:27.2]} 12. Bxf4 {[%clk 0:02:43.8]}
12... O-O {[%clk 0:02:22.8]} 13. c3 {[%clk 0:02:38.9]} 13... f5 {[%clk
0:02:04.1]} 14. Ng3 {[%clk 0:02:20.3]} 14... Kh8 {[%clk 0:01:53.3]} 15. d4
{[%clk 0:02:18.7]} 15... g5 {[%clk 0:01:43.3]} 16. Be3 {[%clk 0:02:18.2]} 16...
f4 {[%clk 0:01:36.6]} 17. Bd3 {[%clk 0:02:18.4]} 17... Qe8 {[%clk 0:00:39.2]}
18. d5 {[%clk 0:01:45.4]} 18... fxe3 {[%clk 0:00:33.2]} 19. Rxf8+ {[%clk
0:01:31.7]} 19... Bxf8 {[%clk 0:00:29.9]} 20. dxc6 {[%clk 0:01:30.5]} 20... bxc6
{[%clk 0:00:29.8]} 21. Qf3 {[%clk 0:01:26.1]} 21... Bc5 {[%clk 0:00:18.4]} 22.
Qf6+ {[%clk 0:01:20.5]} 22... Kg8 {[%clk 0:00:15.3]} 23. Bc4+ {[%clk 0:01:20.5]}
1-0

[Event "*** SCC Grand Prix: Titled Tuesday Blitz"]
[Site "Chess.com"]
[Date "2020.06.09"]
[Round "6"]
[White "eCztery"]
[Black "2008king"]
[Result "0-1"]
[WhiteElo "2394"]
[BlackElo "2197"]
[TimeControl "180+1"]
[EndTime "10:05:05 PDT"]
[Termination "2008king won by resignation"]

1. e4 {[%clk 0:03:00.9]} 1... e5 {[%clk 0:02:59.5]} 2. Nf3 {[%clk 0:03:01.4]}
2... Nc6 {[%clk 0:02:59]} 3. d4 {[%clk 0:03:01.3]} 3... exd4 {[%clk 0:02:56]} 4.
Nxd4 {[%clk 0:03:02.2]} 4... Nf6 {[%clk 0:02:49.1]} 5. Nc3 {[%clk 0:03:01.9]}
5... Bb4 {[%clk 0:02:48.1]} 6. Nxc6 {[%clk 0:03:02.4]} 6... bxc6 {[%clk
0:02:49]} 7. Bd3 {[%clk 0:03:02.7]} 7... d5 {[%clk 0:02:48]} 8. exd5 {[%clk
0:03:03.6]} 8... cxd5 {[%clk 0:02:48.9]} 9. O-O {[%clk 0:03:04.2]} 9... O-O
{[%clk 0:02:46.2]} 10. Bg5 {[%clk 0:03:04.8]} 10... c6 {[%clk 0:02:45.4]} 11.
Qf3 {[%clk 0:03:04.9]} 11... Bd6 {[%clk 0:02:41.3]} 12. Rae1 {[%clk 0:03:02.5]}
12... Rb8 {[%clk 0:02:39.6]} 13. Nd1 {[%clk 0:02:58.6]} 13... h6 {[%clk
0:02:38.9]} 14. Bxf6 {[%clk 0:02:57.1]} 14... Qxf6 {[%clk 0:02:39.8]} 15. Qxf6
{[%clk 0:02:57.2]} 15... gxf6 {[%clk 0:02:40.7]} 16. b3 {[%clk 0:02:56.9]} 16...
Be6 {[%clk 0:02:05]} 17. Ne3 {[%clk 0:02:56.6]} 17... Bb4 {[%clk 0:02:05]} 18.
Re2 {[%clk 0:02:53.8]} 18... Rfe8 {[%clk 0:02:04.6]} 19. Nf5 {[%clk 0:02:28.1]}
19... Bxf5 {[%clk 0:02:03.7]} 20. Rxe8+ {[%clk 0:02:29]} 20... Rxe8 {[%clk
0:02:03.6]} 21. Bxf5 {[%clk 0:02:29.9]} 21... Re5 {[%clk 0:02:00.6]} 22. Bd3
{[%clk 0:02:29.6]} 22... Kf8 {[%clk 0:01:59.2]} 23. g3 {[%clk 0:02:29.8]} 23...
Ke7 {[%clk 0:01:58.7]} 24. Kg2 {[%clk 0:02:29.9]} 24... Kd6 {[%clk 0:01:58.7]}
25. a3 {[%clk 0:02:25.7]} 25... Bxa3 {[%clk 0:01:55.8]} 26. f4 {[%clk
0:02:18.4]} 26... Re3 {[%clk 0:01:53.9]} 27. Kh3 {[%clk 0:02:10.7]} 27... Bc5
{[%clk 0:01:48.4]} 28. Kg4 {[%clk 0:02:09.4]} 28... Re8 {[%clk 0:01:39.5]} 29.
Kf5 {[%clk 0:02:03.5]} 29... Bd4 {[%clk 0:01:36.1]} 30. Rd1 {[%clk 0:02:01.8]}
30... Bc3 {[%clk 0:01:33.1]} 31. Kg4 {[%clk 0:02:00.3]} 31... h5+ {[%clk
0:01:26.5]} 32. Kh4 {[%clk 0:01:56.9]} 32... a5 {[%clk 0:01:08.8]} 33. h3 {[%clk
0:01:45.1]} 33... Rh8 {[%clk 0:00:55]} 34. Be2 {[%clk 0:01:44.7]} 34... f5
{[%clk 0:00:54.1]} 35. Kg5 {[%clk 0:01:35.2]} 35... Ke6 {[%clk 0:00:45.3]} 0-1

[Event "*** SCC Grand Prix: Titled Tuesday Blitz"]
[Site "Chess.com"]
[Date "2020.06.09"]
[Round "6"]
[White "Logman74"]
[Black "Chess2019Player"]
[Result "0-1"]
[WhiteElo "2336"]
[BlackElo "2177"]
[TimeControl "180+1"]
[EndTime "10:05:11 PDT"]
[Termination "Chess2019Player won on time"]

1. e4 {[%clk 0:00:29]} 1... e6 {[%clk 0:02:55.1]} 2. Nf3 {[%clk 0:00:28.7]} 2...
d5 {[%clk 0:02:55.5]} 3. Nc3 {[%clk 0:00:28.9]} 3... Nf6 {[%clk 0:02:52.4]} 4.
e5 {[%clk 0:00:28.5]} 4... Nfd7 {[%clk 0:02:52.4]} 5. d4 {[%clk 0:00:29.1]} 5...
c5 {[%clk 0:02:51.9]} 6. Bd3 {[%clk 0:00:29.5]} 6... Nc6 {[%clk 0:02:49.9]} 7.
Be3 {[%clk 0:00:28.1]} 7... Be7 {[%clk 0:02:48.8]} 8. O-O {[%clk 0:00:27.5]}
8... Nb4 {[%clk 0:02:39.6]} 9. dxc5 {[%clk 0:00:26.2]} 9... Nxc5 {[%clk
0:02:35.7]} 10. a3 {[%clk 0:00:25.5]} 10... Nc6 {[%clk 0:02:27]} 11. Bb5 {[%clk
0:00:21.8]} 11... a6 {[%clk 0:02:24.7]} 12. Bxc6+ {[%clk 0:00:21.5]} 12... bxc6
{[%clk 0:02:25.6]} 13. Nd4 {[%clk 0:00:21.5]} 13... Qc7 {[%clk 0:02:23.4]} 14.
f4 {[%clk 0:00:21.5]} 14... Nd7 {[%clk 0:02:19.2]} 15. Kh1 {[%clk 0:00:22]}
15... c5 {[%clk 0:02:19]} 16. Nb3 {[%clk 0:00:19.4]} 16... d4 {[%clk 0:02:18.6]}
17. Nxd4 {[%clk 0:00:12.8]} 17... cxd4 {[%clk 0:02:19.5]} 18. Bxd4 {[%clk
0:00:12.9]} 18... Bb7 {[%clk 0:02:18.2]} 19. Qg4 {[%clk 0:00:11.7]} 19... g6
{[%clk 0:02:03.9]} 20. Rad1 {[%clk 0:00:10.3]} 20... h5 {[%clk 0:01:56.9]} 21.
Qh3 {[%clk 0:00:09.3]} 21... O-O {[%clk 0:01:54.5]} 22. f5 {[%clk 0:00:08]}
22... exf5 {[%clk 0:01:52.7]} 23. Rxf5 {[%clk 0:00:06.3]} 23... Bc5 {[%clk
0:01:43.6]} 24. e6 {[%clk 0:00:02.1]} 24... Bxd4 {[%clk 0:01:40.9]} 25. Rxd4
{[%clk 0:00:01.3]} 25... fxe6 {[%clk 0:01:37.4]} 0-1

[Event "*** SCC Grand Prix: Titled Tuesday Blitz"]
[Site "Chess.com"]
[Date "2020.06.09"]
[Round "6"]
[White "Boninknights"]
[Black "Kapibara_Warri0r"]
[Result "1-0"]
[WhiteElo "2334"]
[BlackElo "2117"]
[TimeControl "180+1"]
[EndTime "10:05:13 PDT"]
[Termination "Boninknights won by resignation"]

1. d4 {[%clk 0:02:59.7]} 1... Nf6 {[%clk 0:02:59.5]} 2. Nf3 {[%clk 0:02:57.9]}
2... g6 {[%clk 0:02:59.5]} 3. c4 {[%clk 0:02:56.8]} 3... Bg7 {[%clk 0:02:59]} 4.
Nc3 {[%clk 0:02:56.2]} 4... d6 {[%clk 0:02:59.2]} 5. e4 {[%clk 0:02:55.3]} 5...
O-O {[%clk 0:02:59.5]} 6. Be2 {[%clk 0:02:54.9]} 6... e5 {[%clk 0:02:59.5]} 7.
dxe5 {[%clk 0:02:54.4]} 7... dxe5 {[%clk 0:02:59.3]} 8. Qxd8 {[%clk 0:02:52.9]}
8... Rxd8 {[%clk 0:02:59.3]} 9. Bg5 {[%clk 0:02:52]} 9... Re8 {[%clk 0:02:44.4]}
10. Nd5 {[%clk 0:02:49.7]} 10... Nxd5 {[%clk 0:02:40.1]} 11. cxd5 {[%clk
0:02:49.2]} 11... c6 {[%clk 0:02:34.7]} 12. Bc4 {[%clk 0:02:47.6]} 12... a5
{[%clk 0:02:11.7]} 13. a3 {[%clk 0:02:39.5]} 13... b5 {[%clk 0:02:08.4]} 14. Ba2
{[%clk 0:02:38.7]} 14... c5 {[%clk 0:02:05.7]} 15. a4 {[%clk 0:02:25.3]} 15...
Bd7 {[%clk 0:01:58.7]} 16. O-O {[%clk 0:02:13]} 16... Bf8 {[%clk 0:01:32.8]} 17.
axb5 {[%clk 0:02:00.8]} 17... Bxb5 {[%clk 0:01:32.1]} 18. Rfc1 {[%clk
0:01:59.6]} 18... Na6 {[%clk 0:01:26]} 19. Nd2 {[%clk 0:01:56.4]} 19... Nb4
{[%clk 0:01:21]} 20. Bc4 {[%clk 0:01:55.4]} 20... Nd3 {[%clk 0:01:12.1]} 21.
Bxb5 {[%clk 0:01:52.5]} 21... Nxc1 {[%clk 0:01:07.9]} 22. Bxe8 {[%clk
0:01:47.9]} 22... Ne2+ {[%clk 0:00:51.7]} 23. Kf1 {[%clk 0:01:46.5]} 23... Nd4
{[%clk 0:00:50.4]} 24. Bd7 {[%clk 0:01:36.5]} 24... Ra7 {[%clk 0:00:37.1]} 25.
Ba4 {[%clk 0:01:27.4]} 25... Rb7 {[%clk 0:00:34.7]} 26. b3 {[%clk 0:01:24.5]}
26... h6 {[%clk 0:00:30.1]} 27. Be3 {[%clk 0:01:20.9]} 27... Nc2 {[%clk
0:00:22.7]} 28. Rc1 {[%clk 0:01:20.2]} 28... Nxe3+ {[%clk 0:00:20.6]} 29. fxe3
{[%clk 0:01:18.5]} 1-0

[Event "*** SCC Grand Prix: Titled Tuesday Blitz"]
[Site "Chess.com"]
[Date "2020.06.09"]
[Round "6"]
[White "heartofatiger"]
[Black "KaterinaMiroshnik"]
[Result "1-0"]
[WhiteElo "2598"]
[BlackElo "2422"]
[TimeControl "180+1"]
[EndTime "10:05:29 PDT"]
[Termination "heartofatiger won by resignation"]

1. e4 {[%clk 0:01:52.2]} 1... e6 {[%clk 0:02:59.2]} 2. d4 {[%clk 0:01:51.8]}
2... d5 {[%clk 0:02:59.4]} 3. Nc3 {[%clk 0:01:52.7]} 3... Nf6 {[%clk 0:02:59.7]}
4. e5 {[%clk 0:01:52.8]} 4... Nfd7 {[%clk 0:02:59.9]} 5. Nce2 {[%clk 0:01:53.7]}
5... c5 {[%clk 0:03:00.8]} 6. c3 {[%clk 0:01:54.5]} 6... Nc6 {[%clk 0:03:01.3]}
7. f4 {[%clk 0:01:54.8]} 7... a5 {[%clk 0:03:02.2]} 8. Nf3 {[%clk 0:01:54.6]}
8... a4 {[%clk 0:03:02.8]} 9. h4 {[%clk 0:01:54.7]} 9... a3 {[%clk 0:03:02.9]}
10. b3 {[%clk 0:01:54.3]} 10... cxd4 {[%clk 0:03:03.3]} 11. cxd4 {[%clk
0:01:54.3]} 11... Bb4+ {[%clk 0:03:02.7]} 12. Bd2 {[%clk 0:01:54.3]} 12... Qb6
{[%clk 0:03:02.4]} 13. h5 {[%clk 0:01:52.3]} 13... h6 {[%clk 0:03:01.9]} 14. Rh3
{[%clk 0:01:52.1]} 14... Bxd2+ {[%clk 0:02:55.3]} 15. Qxd2 {[%clk 0:01:52]}
15... Qb4 {[%clk 0:02:55.4]} 16. Qxb4 {[%clk 0:01:48.5]} 16... Nxb4 {[%clk
0:02:55.3]} 17. Kd2 {[%clk 0:01:49.2]} 17... Nb6 {[%clk 0:02:54.9]} 18. Nc3
{[%clk 0:01:48.9]} 18... Bd7 {[%clk 0:02:54]} 19. Ne1 {[%clk 0:01:48.8]} 19...
Ke7 {[%clk 0:02:53.3]} 20. Bd3 {[%clk 0:01:48.9]} 20... Rhc8 {[%clk 0:02:51.2]}
21. Nc2 {[%clk 0:01:46.7]} 21... Nxd3 {[%clk 0:02:46.1]} 22. Rxd3 {[%clk
0:01:45.5]} 22... Rc7 {[%clk 0:02:45.1]} 23. Rc1 {[%clk 0:01:44.6]} 23... f6
{[%clk 0:02:38.5]} 24. Nb1 {[%clk 0:01:44.3]} 24... Rcc8 {[%clk 0:02:30.3]} 25.
Ncxa3 {[%clk 0:01:38.3]} 25... Be8 {[%clk 0:02:22.2]} 26. Rxc8 {[%clk
0:01:37.1]} 26... Rxc8 {[%clk 0:02:23.1]} 27. g4 {[%clk 0:01:36.1]} 27... f5
{[%clk 0:02:21.5]} 28. gxf5 {[%clk 0:01:34.4]} 28... exf5 {[%clk 0:02:20]} 29.
Rg3 {[%clk 0:01:34.7]} 29... Kf8 {[%clk 0:02:18.9]} 30. Rh3 {[%clk 0:01:34.9]}
30... Ra8 {[%clk 0:02:13.4]} 31. Kc3 {[%clk 0:01:34.6]} 31... Bf7 {[%clk
0:02:12.9]} 32. Kb2 {[%clk 0:01:32.4]} 32... Be8 {[%clk 0:02:12]} 33. Nc3 {[%clk
0:01:31.9]} 33... Rc8 {[%clk 0:02:09.6]} 34. Nc2 {[%clk 0:01:30.5]} 34... Kg8
{[%clk 0:02:04.4]} 35. Ne3 {[%clk 0:01:28.9]} 35... Bd7 {[%clk 0:02:01.8]} 36.
Nexd5 {[%clk 0:01:24.1]} 36... Nxd5 {[%clk 0:01:59.4]} 37. Nxd5 {[%clk 0:01:25]}
37... Kf7 {[%clk 0:01:56.7]} 38. Nb6 {[%clk 0:01:23.5]} 38... Rd8 {[%clk
0:01:56.9]} 39. d5 {[%clk 0:01:22.8]} 39... Be8 {[%clk 0:01:53.6]} 40. Rc3
{[%clk 0:01:19.2]} 40... Kf8 {[%clk 0:01:52.1]} 41. Rc7 {[%clk 0:01:13.9]} 41...
Bxh5 {[%clk 0:01:50.4]} 42. d6 {[%clk 0:01:12]} 42... Bf7 {[%clk 0:01:48.4]} 43.
Rxb7 {[%clk 0:01:06.1]} 43... h5 {[%clk 0:01:47.3]} 44. Rc7 {[%clk 0:01:05.4]}
44... h4 {[%clk 0:01:46.6]} 45. Rc3 {[%clk 0:01:05.2]} 45... g5 {[%clk 0:01:44]}
46. fxg5 {[%clk 0:01:05.1]} 46... f4 {[%clk 0:01:33.2]} 47. Rf3 {[%clk
0:01:04.6]} 1-0

[Event "*** SCC Grand Prix: Titled Tuesday Blitz"]
[Site "Chess.com"]
[Date "2020.06.09"]
[Round "6"]
[White "Aygehovit1992"]
[Black "obliviate12"]
[Result "0-1"]
[WhiteElo "2689"]
[BlackElo "2818"]
[TimeControl "180+1"]
[EndTime "10:05:34 PDT"]
[Termination "obliviate12 won on time"]

1. e4 {[%clk 0:03:00.9]} 1... c6 {[%clk 0:02:59.8]} 2. Nc3 {[%clk 0:02:59.9]}
2... d5 {[%clk 0:02:59.8]} 3. Qf3 {[%clk 0:03:00.5]} 3... d4 {[%clk 0:02:06.8]}
4. Bc4 {[%clk 0:02:58.8]} 4... Nf6 {[%clk 0:02:07.1]} 5. e5 {[%clk 0:02:47.5]}
5... dxc3 {[%clk 0:02:06.5]} 6. exf6 {[%clk 0:02:46.6]} 6... exf6 {[%clk
0:02:02.7]} 7. dxc3 {[%clk 0:02:46.6]} 7... Be7 {[%clk 0:01:53.2]} 8. Bf4 {[%clk
0:02:45.8]} 8... O-O {[%clk 0:01:52.4]} 9. Ne2 {[%clk 0:02:45.8]} 9... Nd7
{[%clk 0:01:48.2]} 10. O-O-O {[%clk 0:02:44]} 10... Qa5 {[%clk 0:01:48]} 11. h4
{[%clk 0:02:41.6]} 11... Ne5 {[%clk 0:01:47.9]} 12. Bxe5 {[%clk 0:02:38.3]}
12... fxe5 {[%clk 0:01:34.6]} 13. h5 {[%clk 0:02:37.6]} 13... Be6 {[%clk
0:01:19.3]} 14. Qe4 {[%clk 0:02:03.3]} 14... Qa4 {[%clk 0:01:11.3]} 15. b3
{[%clk 0:01:47.3]} 15... Qxa2 {[%clk 0:01:10.6]} 16. Bxe6 {[%clk 0:01:47]} 16...
fxe6 {[%clk 0:01:11.5]} 17. Qxe5 {[%clk 0:00:48.4]} 17... Rad8 {[%clk
0:01:10.8]} 18. Nd4 {[%clk 0:00:26.7]} 18... Rxf2 {[%clk 0:01:03.8]} 19. Qxe6+
{[%clk 0:00:07.1]} 19... Kh8 {[%clk 0:01:03.1]} 0-1

[Event "*** SCC Grand Prix: Titled Tuesday Blitz"]
[Site "Chess.com"]
[Date "2020.06.09"]
[Round "6"]
[White "NicoChasin"]
[Black "northridgehawk"]
[Result "1-0"]
[WhiteElo "2470"]
[BlackElo "2346"]
[TimeControl "180+1"]
[EndTime "10:05:35 PDT"]
[Termination "NicoChasin won by resignation"]

1. e4 {[%clk 0:01:59.3]} 1... e5 {[%clk 0:02:51.1]} 2. Nf3 {[%clk 0:01:58.1]}
2... Nc6 {[%clk 0:02:51.4]} 3. Bc4 {[%clk 0:01:47.1]} 3... Nf6 {[%clk
0:02:50.9]} 4. d3 {[%clk 0:01:42.9]} 4... Bc5 {[%clk 0:02:50.3]} 5. c3 {[%clk
0:01:37.5]} 5... d6 {[%clk 0:02:50.6]} 6. b4 {[%clk 0:01:36.5]} 6... Bb6 {[%clk
0:02:49]} 7. O-O {[%clk 0:01:36.9]} 7... h6 {[%clk 0:02:48.3]} 8. a4 {[%clk
0:01:28.3]} 8... a5 {[%clk 0:02:46.2]} 9. b5 {[%clk 0:01:27.4]} 9... Ne7 {[%clk
0:02:45.9]} 10. Nbd2 {[%clk 0:01:28.3]} 10... g5 {[%clk 0:02:45.1]} 11. Bb3
{[%clk 0:01:27.6]} 11... Ng6 {[%clk 0:02:44.8]} 12. Nc4 {[%clk 0:01:27.1]} 12...
Ba7 {[%clk 0:02:37.4]} 13. Nxa5 {[%clk 0:01:25.2]} 13... g4 {[%clk 0:02:34.5]}
14. Ne1 {[%clk 0:01:21.8]} 14... Nh5 {[%clk 0:02:34]} 15. Nc4 {[%clk 0:01:19.2]}
15... Qh4 {[%clk 0:02:31.2]} 16. Be3 {[%clk 0:01:17.5]} 16... Nhf4 {[%clk
0:02:10.4]} 17. a5 {[%clk 0:01:10.3]} 17... Rg8 {[%clk 0:02:08.6]} 18. Bxa7
{[%clk 0:01:07]} 18... Rxa7 {[%clk 0:02:07.4]} 19. b6 {[%clk 0:01:07.6]} 19...
Ra8 {[%clk 0:02:01.8]} 20. bxc7 {[%clk 0:01:06.9]} 20... Nh3+ {[%clk 0:01:58.4]}
21. Kh1 {[%clk 0:01:05.4]} 21... Nxf2+ {[%clk 0:01:55.9]} 22. Rxf2 {[%clk
0:01:05.5]} 22... Qxf2 {[%clk 0:01:56.8]} 23. Nxd6+ {[%clk 0:01:05.6]} 23... Ke7
{[%clk 0:01:52.8]} 24. Nc2 {[%clk 0:00:52.2]} 24... Nf4 {[%clk 0:01:44]} 25.
Nxc8+ {[%clk 0:00:50.4]} 25... Raxc8 {[%clk 0:01:42.2]} 26. Qf1 {[%clk
0:00:50.6]} 26... g3 {[%clk 0:01:37.7]} 27. Qxf2 {[%clk 0:00:48.7]} 27... gxf2
{[%clk 0:01:38.6]} 28. Ne3 {[%clk 0:00:48.1]} 28... Nxd3 {[%clk 0:01:34.2]} 29.
Nd5+ {[%clk 0:00:45.9]} 29... Kd6 {[%clk 0:01:31]} 30. Rf1 {[%clk 0:00:45.7]}
30... Rg4 {[%clk 0:01:24.4]} 31. Bc2 {[%clk 0:00:34.7]} 31... Ne1 {[%clk
0:01:22.8]} 32. Bb1 {[%clk 0:00:31.7]} 32... Rxg2 {[%clk 0:01:22.3]} 33. Ne3
{[%clk 0:00:28.3]} 33... Rcg8 {[%clk 0:01:15.7]} 34. Nxg2 {[%clk 0:00:26]} 34...
Rxg2 {[%clk 0:01:16.6]} 35. c8=Q {[%clk 0:00:24.7]} 35... Nf3 {[%clk 0:01:06.5]}
36. Kxg2 {[%clk 0:00:21.6]} 1-0

[Event "*** SCC Grand Prix: Titled Tuesday Blitz"]
[Site "Chess.com"]
[Date "2020.06.09"]
[Round "6"]
[White "Jbd735"]
[Black "Flawless_Fighter"]
[Result "0-1"]
[WhiteElo "2459"]
[BlackElo "2612"]
[TimeControl "180+1"]
[EndTime "10:05:36 PDT"]
[Termination "Flawless_Fighter won by checkmate"]

1. e4 {[%clk 0:03:00.9]} 1... c6 {[%clk 0:02:59.5]} 2. d4 {[%clk 0:03:00.5]}
2... d5 {[%clk 0:03:00.4]} 3. Nc3 {[%clk 0:03:00.4]} 3... dxe4 {[%clk
0:03:00.3]} 4. Nxe4 {[%clk 0:03:01.3]} 4... Bf5 {[%clk 0:03:00.6]} 5. Ng3 {[%clk
0:03:01.7]} 5... Bg6 {[%clk 0:03:01.2]} 6. h4 {[%clk 0:03:02.1]} 6... h6 {[%clk
0:03:01.2]} 7. Nf3 {[%clk 0:03:02.4]} 7... Nd7 {[%clk 0:03:00.7]} 8. Bd3 {[%clk
0:03:03.1]} 8... Bxd3 {[%clk 0:03:00.4]} 9. Qxd3 {[%clk 0:03:04]} 9... Ngf6
{[%clk 0:03:00.2]} 10. Bd2 {[%clk 0:03:03.2]} 10... e6 {[%clk 0:03:00.6]} 11.
O-O-O {[%clk 0:03:03.5]} 11... Be7 {[%clk 0:02:59.7]} 12. Kb1 {[%clk 0:02:59.6]}
12... Qb6 {[%clk 0:02:57.3]} 13. Ne4 {[%clk 0:02:50.2]} 13... Rd8 {[%clk
0:02:57.2]} 14. Nxf6+ {[%clk 0:02:46.2]} 14... Nxf6 {[%clk 0:02:56.9]} 15. c4
{[%clk 0:02:37]} 15... c5 {[%clk 0:02:46.3]} 16. Bc3 {[%clk 0:02:27.7]} 16...
O-O {[%clk 0:02:40.7]} 17. Qe2 {[%clk 0:02:09.5]} 17... cxd4 {[%clk 0:02:37.1]}
18. Bxd4 {[%clk 0:02:00.6]} 18... Qc6 {[%clk 0:02:35.7]} 19. Ne5 {[%clk
0:01:46.3]} 19... Qc7 {[%clk 0:02:10.3]} 20. g4 {[%clk 0:01:38.8]} 20... Bc5
{[%clk 0:01:53.9]} 21. Bc3 {[%clk 0:01:32.7]} 21... Rxd1+ {[%clk 0:01:52]} 22.
Qxd1 {[%clk 0:01:20.9]} 22... Rd8 {[%clk 0:01:51.7]} 23. Qf3 {[%clk 0:01:20.5]}
23... Bd4 {[%clk 0:01:47.6]} 24. Bxd4 {[%clk 0:01:02.7]} 24... Rxd4 {[%clk
0:01:48.5]} 25. Re1 {[%clk 0:00:57.1]} 25... Qa5 {[%clk 0:01:15.4]} 26. Qe2
{[%clk 0:00:07.7]} 26... Re4 {[%clk 0:01:12]} 27. Qxe4 {[%clk 0:00:07.9]} 27...
Nxe4 {[%clk 0:01:12.5]} 28. Rxe4 {[%clk 0:00:08.8]} 28... Qd2 {[%clk 0:01:09.1]}
29. f3 {[%clk 0:00:06.6]} 29... Qd1# {[%clk 0:01:08.5]} 0-1

[Event "*** SCC Grand Prix: Titled Tuesday Blitz"]
[Site "Chess.com"]
[Date "2020.06.09"]
[Round "6"]
[White "chesstrainer2042"]
[Black "MarceloPlaya"]
[Result "0-1"]
[WhiteElo "2438"]
[BlackElo "2248"]
[TimeControl "180+1"]
[EndTime "10:05:37 PDT"]
[Termination "MarceloPlaya won by resignation"]

1. d4 {[%clk 0:02:33.6]} 1... e6 {[%clk 0:02:59.2]} 2. e4 {[%clk 0:02:32.8]}
2... d5 {[%clk 0:02:58.2]} 3. Nd2 {[%clk 0:02:33.1]} 3... c5 {[%clk 0:02:57.4]}
4. Ngf3 {[%clk 0:02:32.3]} 4... Nc6 {[%clk 0:02:56.8]} 5. exd5 {[%clk
0:02:30.3]} 5... exd5 {[%clk 0:02:56.2]} 6. Bb5 {[%clk 0:02:28.5]} 6... Bd6
{[%clk 0:02:55.5]} 7. O-O {[%clk 0:02:27.2]} 7... Ne7 {[%clk 0:02:54.7]} 8. dxc5
{[%clk 0:02:25.7]} 8... Bxc5 {[%clk 0:02:53.9]} 9. Nb3 {[%clk 0:02:26.2]} 9...
Bb6 {[%clk 0:02:53.4]} 10. Bg5 {[%clk 0:02:26]} 10... O-O {[%clk 0:02:51.6]} 11.
h3 {[%clk 0:02:26.2]} 11... Qd6 {[%clk 0:02:48.6]} 12. Re1 {[%clk 0:02:24.6]}
12... h6 {[%clk 0:02:46.9]} 13. Bxe7 {[%clk 0:02:21.2]} 13... Nxe7 {[%clk
0:02:46.2]} 14. Nbd4 {[%clk 0:02:20.5]} 14... Nf5 {[%clk 0:02:39.4]} 15. c3
{[%clk 0:02:19.3]} 15... Nxd4 {[%clk 0:02:37.2]} 16. Nxd4 {[%clk 0:02:19.6]}
16... Bc7 {[%clk 0:02:34.4]} 17. Nf3 {[%clk 0:02:17.3]} 17... Bf5 {[%clk
0:02:33.1]} 18. Bd3 {[%clk 0:02:16.2]} 18... Bd7 {[%clk 0:02:20.8]} 19. Bf1
{[%clk 0:02:04.7]} 19... Bf5 {[%clk 0:02:11.8]} 20. Qd4 {[%clk 0:02:04.2]} 20...
Be4 {[%clk 0:02:07.8]} 21. Ne5 {[%clk 0:01:48.7]} 21... f6 {[%clk 0:01:42.6]}
22. Ng4 {[%clk 0:01:17.1]} 22... h5 {[%clk 0:01:41]} 23. Rxe4 {[%clk 0:01:15]}
23... hxg4 {[%clk 0:01:26]} 24. Qxd5+ {[%clk 0:01:09.9]} 24... Qxd5 {[%clk
0:01:15.1]} 25. Bc4 {[%clk 0:01:10.4]} 25... Rfd8 {[%clk 0:01:04.4]} 26. hxg4
{[%clk 0:01:04.2]} 26... Bb6 {[%clk 0:00:58.1]} 27. Rf1 {[%clk 0:00:50.5]} 27...
Qxc4 {[%clk 0:00:55.2]} 28. Rxc4 {[%clk 0:00:50.1]} 28... Rd2 {[%clk 0:00:54.7]}
29. Rb4 {[%clk 0:00:47]} 29... Re8 {[%clk 0:00:52.6]} 30. a4 {[%clk 0:00:45.2]}
30... Ree2 {[%clk 0:00:50.1]} 0-1